[Event "*** SCC Grand Prix: Titled Tuesday Blitz"]
[Site "Chess.com"]
[Date "2020.07.14"]
[Round "10"]
[White "LilRag"]
[Black "JozefKneht"]
[Result "1/2-1/2"]
[WhiteElo "2499"]
[BlackElo "2353"]
[TimeControl "180+1"]
[EndTime "11:59:27 PDT"]
[Termination "Game drawn by repetition"]

1. e4 {[%clk 0:03:00.9]} 1... e5 {[%clk 0:02:58.8]} 2. Nf3 {[%clk 0:03:00.7]}
2... Nc6 {[%clk 0:02:58.8]} 3. Bc4 {[%clk 0:03:00.2]} 3... Bc5 {[%clk
0:02:57.4]} 4. O-O {[%clk 0:03:00.6]} 4... Nf6 {[%clk 0:02:57]} 5. d4 {[%clk
0:03:01.1]} 5... exd4 {[%clk 0:02:54.5]} 6. e5 {[%clk 0:02:56.7]} 6... d5 {[%clk
0:02:54.6]} 7. exf6 {[%clk 0:02:56.6]} 7... dxc4 {[%clk 0:02:50.3]} 8. Re1+
{[%clk 0:02:56.2]} 8... Be6 {[%clk 0:02:50.1]} 9. Ng5 {[%clk 0:02:50.2]} 9...
Qd5 {[%clk 0:02:46.3]} 10. Nc3 {[%clk 0:02:34.7]} 10... Qf5 {[%clk 0:02:40.7]}
11. Nce4 {[%clk 0:02:31.4]} 11... O-O-O {[%clk 0:01:36.1]} 12. Nxc5 {[%clk
0:02:09.2]} 12... Qxc5 {[%clk 0:01:31.1]} 13. fxg7 {[%clk 0:01:47.3]} 13... Rhg8
{[%clk 0:01:28.6]} 14. Rxe6 {[%clk 0:01:45.4]} 14... fxe6 {[%clk 0:01:28.3]} 15.
Nxe6 {[%clk 0:01:45.9]} 15... Qd5 {[%clk 0:01:20.3]} 16. Nxd8 {[%clk 0:01:45.1]}
16... Rxg7 {[%clk 0:01:16.9]} 17. g3 {[%clk 0:01:38.3]} 17... Qxd8 {[%clk
0:01:13.2]} 18. Bf4 {[%clk 0:01:33.1]} 18... Qd5 {[%clk 0:01:10.1]} 19. Qe2
{[%clk 0:01:29.4]} 19... b5 {[%clk 0:01:07.4]} 20. a4 {[%clk 0:01:25.8]} 20...
b4 {[%clk 0:01:05.8]} 21. b3 {[%clk 0:01:20.4]} 21... cxb3 {[%clk 0:00:57.3]}
22. cxb3 {[%clk 0:01:17.3]} 22... d3 {[%clk 0:00:56.4]} 23. Qe3 {[%clk 0:01:05]}
23... Rd7 {[%clk 0:00:54]} 24. Rc1 {[%clk 0:00:58.3]} 24... Kb7 {[%clk
0:00:52.2]} 25. Rc5 {[%clk 0:00:56.3]} 25... Qxb3 {[%clk 0:00:48.1]} 26. Rb5+
{[%clk 0:00:55.1]} 26... Kc8 {[%clk 0:00:48]} 27. Qe8+ {[%clk 0:00:42.8]} 27...
Nd8 {[%clk 0:00:47.9]} 28. Qe4 {[%clk 0:00:38.3]} 28... Rf7 {[%clk 0:00:18.6]}
29. Qa8+ {[%clk 0:00:33.7]} 29... Kd7 {[%clk 0:00:17.4]} 30. Rd5+ {[%clk
0:00:34.2]} 30... Ke6 {[%clk 0:00:17]} 31. Qxd8 {[%clk 0:00:31.3]} 31... Qxd5
{[%clk 0:00:14.7]} 32. Qe8+ {[%clk 0:00:23.3]} 32... Kf5 {[%clk 0:00:14.3]} 33.
Qc8+ {[%clk 0:00:18.8]} 33... Qd7 {[%clk 0:00:10.9]} 34. Qg8 {[%clk 0:00:17.5]}
34... Ke4 {[%clk 0:00:08.8]} 35. Qg5 {[%clk 0:00:15.9]} 35... Kd4 {[%clk
0:00:07.8]} 36. Qe5+ {[%clk 0:00:15.3]} 36... Kc4 {[%clk 0:00:07.6]} 37. Qe4+
{[%clk 0:00:13.7]} 37... Kb3 {[%clk 0:00:06.4]} 38. Bd2 {[%clk 0:00:13.6]} 38...
c5 {[%clk 0:00:05.4]} 39. Qe1 {[%clk 0:00:13.3]} 39... Kxa4 {[%clk 0:00:03.5]}
40. Qa1+ {[%clk 0:00:13.2]} 40... Kb5 {[%clk 0:00:04.1]} 41. Qa2 {[%clk
0:00:12.7]} 41... a5 {[%clk 0:00:03.6]} 42. Qb2 {[%clk 0:00:11.9]} 42... c4
{[%clk 0:00:03.8]} 43. Qe5+ {[%clk 0:00:12.1]} 43... Ka4 {[%clk 0:00:02.7]} 44.
Qa1+ {[%clk 0:00:11.2]} 44... Kb5 {[%clk 0:00:03.3]} 45. Qe5+ {[%clk 0:00:11.7]}
45... Ka6 {[%clk 0:00:03.3]} 46. Be3 {[%clk 0:00:11]} 46... c3 {[%clk
0:00:02.8]} 47. Qc5 {[%clk 0:00:10.7]} 47... Rf6 {[%clk 0:00:03.1]} 48. Qc4+
{[%clk 0:00:10.2]} 48... Qb5 {[%clk 0:00:02.8]} 49. Qc8+ {[%clk 0:00:09.8]}
49... Qb7 {[%clk 0:00:03.4]} 50. Qc4+ {[%clk 0:00:09.8]} 50... Qb5 {[%clk
0:00:04.1]} 51. Qc8+ {[%clk 0:00:10.2]} 51... Qb7 {[%clk 0:00:04.4]} 52. Qc4+
{[%clk 0:00:10.4]} 52... Qb5 {[%clk 0:00:03.5]} 1/2-1/2

[Event "*** SCC Grand Prix: Titled Tuesday Blitz"]
[Site "Chess.com"]
[Date "2020.07.14"]
[Round "10"]
[White "MFguimaraes"]
[Black "SiddharthGMJagadeesh"]
[Result "0-1"]
[WhiteElo "2395"]
[BlackElo "2519"]
[TimeControl "180+1"]
[EndTime "11:59:28 PDT"]
[Termination "SiddharthGMJagadeesh won by checkmate"]

1. e4 {[%clk 0:03:00.9]} 1... c5 {[%clk 0:02:56.3]} 2. Nf3 {[%clk 0:03:00.7]}
2... e6 {[%clk 0:02:54.9]} 3. g3 {[%clk 0:03:00.4]} 3... Nc6 {[%clk 0:02:52.3]}
4. Bg2 {[%clk 0:02:59.6]} 4... Nf6 {[%clk 0:02:52.3]} 5. Nc3 {[%clk 0:03:00.1]}
5... d6 {[%clk 0:02:45.9]} 6. O-O {[%clk 0:02:59.9]} 6... Be7 {[%clk 0:02:46.2]}
7. Re1 {[%clk 0:03:00.1]} 7... O-O {[%clk 0:02:45.8]} 8. d3 {[%clk 0:02:57.2]}
8... Bd7 {[%clk 0:02:43]} 9. e5 {[%clk 0:02:56.7]} 9... dxe5 {[%clk 0:02:42.2]}
10. Nxe5 {[%clk 0:02:57.6]} 10... Nxe5 {[%clk 0:02:41.3]} 11. Rxe5 {[%clk
0:02:58.5]} 11... Qc7 {[%clk 0:02:35.1]} 12. Re1 {[%clk 0:02:53.6]} 12... Bc6
{[%clk 0:02:33]} 13. Bf4 {[%clk 0:02:53]} 13... Bd6 {[%clk 0:02:31.7]} 14. Bg5
{[%clk 0:02:46.9]} 14... Bxg2 {[%clk 0:02:26.4]} 15. Kxg2 {[%clk 0:02:45.6]}
15... Nd5 {[%clk 0:02:19.4]} 16. Nxd5 {[%clk 0:02:25.6]} 16... exd5 {[%clk
0:02:20.3]} 17. Qf3 {[%clk 0:02:23.6]} 17... h6 {[%clk 0:02:15.9]} 18. Bd2
{[%clk 0:02:12.2]} 18... Rad8 {[%clk 0:02:14.5]} 19. Re2 {[%clk 0:02:08.9]}
19... Be5 {[%clk 0:02:13.6]} 20. c3 {[%clk 0:02:08.3]} 20... Qd6 {[%clk
0:01:58.1]} 21. Rae1 {[%clk 0:02:04.3]} 21... Bf6 {[%clk 0:01:58]} 22. Bf4
{[%clk 0:02:03.5]} 22... Qb6 {[%clk 0:01:55.3]} 23. h4 {[%clk 0:01:34.8]} 23...
Qc6 {[%clk 0:01:49.4]} 24. Be5 {[%clk 0:01:31]} 24... Bxe5 {[%clk 0:01:44.5]}
25. Rxe5 {[%clk 0:01:31.9]} 25... Rd6 {[%clk 0:01:40]} 26. Re7 {[%clk
0:01:26.6]} 26... Rf6 {[%clk 0:01:37.1]} 27. Qe3 {[%clk 0:01:15.5]} 27... Kh7
{[%clk 0:00:43.7]} 28. d4 {[%clk 0:01:00.1]} 28... c4 {[%clk 0:00:36]} 29. b4
{[%clk 0:00:50.2]} 29... Qc8 {[%clk 0:00:29.5]} 30. Qe5 {[%clk 0:00:39]} 30...
Rd8 {[%clk 0:00:27.8]} 31. Qc7 {[%clk 0:00:32]} 31... Qf5 {[%clk 0:00:24.9]} 32.
Qf4 {[%clk 0:00:20]} 32... Qc2 {[%clk 0:00:18.3]} 33. Qe3 {[%clk 0:00:16.7]}
33... Rdd6 {[%clk 0:00:17]} 34. Re2 {[%clk 0:00:15.8]} 34... Qf5 {[%clk
0:00:13.9]} 35. Re5 {[%clk 0:00:15.6]} 35... Qg6 {[%clk 0:00:11.6]} 36. h5
{[%clk 0:00:15.1]} 36... Qb1 {[%clk 0:00:11.4]} 37. f4 {[%clk 0:00:14]} 37...
Rde6 {[%clk 0:00:11]} 38. Qf3 {[%clk 0:00:13]} 38... Rxe5 {[%clk 0:00:10.7]} 39.
dxe5 {[%clk 0:00:13.5]} 39... Rf5 {[%clk 0:00:09.3]} 40. Rd2 {[%clk 0:00:13.2]}
40... Qc1 {[%clk 0:00:07.3]} 41. Re2 {[%clk 0:00:12.3]} 41... d4 {[%clk
0:00:06.8]} 42. cxd4 {[%clk 0:00:12.3]} 42... c3 {[%clk 0:00:07.2]} 43. Qd3
{[%clk 0:00:11.9]} 43... g6 {[%clk 0:00:05.9]} 44. hxg6+ {[%clk 0:00:12.4]}
44... fxg6 {[%clk 0:00:06.4]} 45. Rc2 {[%clk 0:00:13]} 45... Qb1 {[%clk
0:00:05]} 46. Rxc3 {[%clk 0:00:13.1]} 46... Qxa2+ {[%clk 0:00:04.7]} 47. Rc2
{[%clk 0:00:13.5]} 47... Qd5+ {[%clk 0:00:05.2]} 48. Qf3 {[%clk 0:00:13.3]}
48... Qxd4 {[%clk 0:00:05.6]} 49. Rc7+ {[%clk 0:00:13.7]} 49... Kg8 {[%clk
0:00:05.3]} 50. Rxb7 {[%clk 0:00:14.1]} 50... Qd2+ {[%clk 0:00:05.1]} 51. Kh3
{[%clk 0:00:14.2]} 51... Qd8 {[%clk 0:00:04]} 52. Qb3+ {[%clk 0:00:13.5]} 52...
Kh8 {[%clk 0:00:03.4]} 53. Qf7 {[%clk 0:00:13.6]} 53... Rh5+ {[%clk 0:00:03.5]}
54. Kg4 {[%clk 0:00:13.4]} 54... Qd1# {[%clk 0:00:03.9]} 0-1

[Event "*** SCC Grand Prix: Titled Tuesday Blitz"]
[Site "Chess.com"]
[Date "2020.07.14"]
[Round "10"]
[White "MariaFominykh"]
[Black "NefeLV"]
[Result "1-0"]
[WhiteElo "2247"]
[BlackElo "1827"]
[TimeControl "180+1"]
[EndTime "11:59:31 PDT"]
[Termination "MariaFominykh won on time"]

1. d4 {[%clk 0:03:00]} 1... g6 {[%clk 0:02:53.7]} 2. c4 {[%clk 0:02:58.6]} 2...
Bg7 {[%clk 0:02:49.3]} 3. Nf3 {[%clk 0:02:57.7]} 3... Nf6 {[%clk 0:02:50.2]} 4.
Nc3 {[%clk 0:02:55.7]} 4... O-O {[%clk 0:02:51.1]} 5. e4 {[%clk 0:02:54.6]} 5...
d6 {[%clk 0:02:51.6]} 6. h3 {[%clk 0:02:54.1]} 6... c5 {[%clk 0:02:50.4]} 7. Be3
{[%clk 0:02:51.4]} 7... cxd4 {[%clk 0:02:48]} 8. Nxd4 {[%clk 0:02:48.6]} 8...
Nc6 {[%clk 0:02:48.7]} 9. Nc2 {[%clk 0:02:41.8]} 9... a6 {[%clk 0:02:44.4]} 10.
Be2 {[%clk 0:02:41.2]} 10... Qc7 {[%clk 0:02:43.6]} 11. O-O {[%clk 0:02:37.2]}
11... Ne5 {[%clk 0:02:40.2]} 12. Na3 {[%clk 0:02:32.9]} 12... Be6 {[%clk
0:02:30.6]} 13. Rc1 {[%clk 0:01:30.1]} 13... Rac8 {[%clk 0:02:21.9]} 14. b3
{[%clk 0:01:25.2]} 14... Rfd8 {[%clk 0:02:19.5]} 15. f4 {[%clk 0:01:20.5]} 15...
Ned7 {[%clk 0:02:12.7]} 16. Bf3 {[%clk 0:01:12.9]} 16... Nc5 {[%clk 0:02:10.4]}
17. Qe2 {[%clk 0:01:00]} 17... Qa5 {[%clk 0:02:04.2]} 18. Nab1 {[%clk
0:00:56.2]} 18... h5 {[%clk 0:01:38.8]} 19. Kh1 {[%clk 0:00:42.3]} 19... Qb4
{[%clk 0:01:37.5]} 20. Bd2 {[%clk 0:00:38.1]} 20... Qb6 {[%clk 0:01:36.3]} 21.
Nd5 {[%clk 0:00:32.7]} 21... Bxd5 {[%clk 0:01:34.7]} 22. exd5 {[%clk 0:00:30.7]}
22... Rd7 {[%clk 0:01:25]} 23. f5 {[%clk 0:00:30.6]} 23... Kh7 {[%clk 0:01:18]}
24. fxg6+ {[%clk 0:00:30]} 24... fxg6 {[%clk 0:01:17.6]} 25. Nc3 {[%clk
0:00:30.2]} 25... Qd8 {[%clk 0:01:11.1]} 26. Bg5 {[%clk 0:00:30]} 26... b6
{[%clk 0:00:58]} 27. Qc2 {[%clk 0:00:29.3]} 27... Qe8 {[%clk 0:00:55.6]} 28.
Bxf6 {[%clk 0:00:28.2]} 28... exf6 {[%clk 0:00:55.4]} 29. Bxh5 {[%clk
0:00:27.4]} 29... Bh6 {[%clk 0:00:55.7]} 30. Rce1 {[%clk 0:00:26.5]} 30... Qg8
{[%clk 0:00:54.1]} 31. Rxf6 {[%clk 0:00:23.2]} 31... Rg7 {[%clk 0:00:38.8]} 32.
Ref1 {[%clk 0:00:19.3]} 32... b5 {[%clk 0:00:36.7]} 33. Ne4 {[%clk 0:00:18.2]}
33... Nxe4 {[%clk 0:00:27.6]} 34. Qxe4 {[%clk 0:00:17.6]} 34... bxc4 {[%clk
0:00:24.1]} 35. bxc4 {[%clk 0:00:17.2]} 35... Bg5 {[%clk 0:00:18.1]} 36. Rxd6
{[%clk 0:00:16.6]} 36... Qe8 {[%clk 0:00:09.1]} 37. Re6 {[%clk 0:00:15.9]} 37...
Qg8 {[%clk 0:00:08.3]} 38. Bg4 {[%clk 0:00:15.8]} 38... Rc5 {[%clk 0:00:07.3]}
39. Rxa6 {[%clk 0:00:15.1]} 39... Rgc7 {[%clk 0:00:05.6]} 40. Be6 {[%clk
0:00:14.9]} 40... Qg7 {[%clk 0:00:04.9]} 41. Ra8 {[%clk 0:00:14.4]} 41... Rxc4
{[%clk 0:00:03.8]} 42. Qf3 {[%clk 0:00:14]} 42... Rc3 {[%clk 0:00:03.3]} 43. Qg4
{[%clk 0:00:13.7]} 43... R3c4 {[%clk 0:00:03.1]} 44. Qxg5 {[%clk 0:00:13.4]}
44... Rc1 {[%clk 0:00:01.9]} 45. Rxc1 {[%clk 0:00:09.9]} 1-0

[Event "*** SCC Grand Prix: Titled Tuesday Blitz"]
[Site "Chess.com"]
[Date "2020.07.14"]
[Round "10"]
[White "Andrei_Belozerov"]
[Black "Nafania1"]
[Result "0-1"]
[WhiteElo "2553"]
[BlackElo "2453"]
[TimeControl "180+1"]
[EndTime "11:59:33 PDT"]
[Termination "Nafania1 won by resignation"]

1. e4 {[%clk 0:03:00.9]} 1... e6 {[%clk 0:03:00.1]} 2. d4 {[%clk 0:03:00.4]}
2... d5 {[%clk 0:03:00.4]} 3. Nd2 {[%clk 0:03:01]} 3... Be7 {[%clk 0:03:00.2]}
4. e5 {[%clk 0:03:00.3]} 4... c5 {[%clk 0:02:59.8]} 5. c3 {[%clk 0:03:00.4]}
5... cxd4 {[%clk 0:03:00]} 6. cxd4 {[%clk 0:02:59.1]} 6... Qb6 {[%clk
0:03:00.6]} 7. Ndf3 {[%clk 0:02:50.1]} 7... Bb4+ {[%clk 0:02:57.8]} 8. Bd2
{[%clk 0:02:48.9]} 8... Nc6 {[%clk 0:02:53.4]} 9. Bxb4 {[%clk 0:02:35.9]} 9...
Qxb4+ {[%clk 0:02:53.3]} 10. Qd2 {[%clk 0:02:36.1]} 10... Nge7 {[%clk
0:02:46.4]} 11. Bd3 {[%clk 0:02:20.8]} 11... Qxd2+ {[%clk 0:02:44.3]} 12. Kxd2
{[%clk 0:02:19.2]} 12... Bd7 {[%clk 0:02:42.5]} 13. Ne2 {[%clk 0:02:18.9]} 13...
O-O {[%clk 0:02:38.2]} 14. Rac1 {[%clk 0:01:57]} 14... f6 {[%clk 0:02:26.8]} 15.
Ke3 {[%clk 0:01:54.6]} 15... Rac8 {[%clk 0:02:11.8]} 16. h4 {[%clk 0:01:46.1]}
16... h6 {[%clk 0:02:01.8]} 17. g3 {[%clk 0:01:31.5]} 17... fxe5 {[%clk
0:01:49.2]} 18. Nxe5 {[%clk 0:01:29.5]} 18... Nxe5 {[%clk 0:01:39.8]} 19. dxe5
{[%clk 0:01:27.6]} 19... Nc6 {[%clk 0:01:35.5]} 20. f4 {[%clk 0:01:22.3]} 20...
Kf7 {[%clk 0:01:19]} 21. Nd4 {[%clk 0:01:18]} 21... Ke7 {[%clk 0:01:11.5]} 22.
a3 {[%clk 0:01:16.6]} 22... Nxd4 {[%clk 0:01:03.3]} 23. Kxd4 {[%clk 0:01:15.8]}
23... Rc6 {[%clk 0:01:02.1]} 24. Rxc6 {[%clk 0:01:13]} 24... Bxc6 {[%clk
0:01:02.4]} 25. Rc1 {[%clk 0:01:08]} 25... g5 {[%clk 0:00:57.2]} 26. hxg5 {[%clk
0:01:03.3]} 26... hxg5 {[%clk 0:00:57.4]} 27. fxg5 {[%clk 0:01:04]} 27... Rf3
{[%clk 0:00:51.7]} 28. Rg1 {[%clk 0:01:03]} 28... Kf7 {[%clk 0:00:42.5]} 29. g6+
{[%clk 0:01:02.6]} 29... Kg7 {[%clk 0:00:42.5]} 30. b4 {[%clk 0:00:59]} 30... a6
{[%clk 0:00:41.9]} 31. g4 {[%clk 0:00:44.9]} 31... Bb5 {[%clk 0:00:35.3]} 32.
Bb1 {[%clk 0:00:36.3]} 32... Rxa3 {[%clk 0:00:28.5]} 33. Rh1 {[%clk 0:00:33]}
33... Rb3 {[%clk 0:00:28.8]} 34. Kc5 {[%clk 0:00:28.5]} 34... Rc3+ {[%clk
0:00:25.7]} 35. Kd6 {[%clk 0:00:27]} 35... Rc6+ {[%clk 0:00:24.7]} 36. Ke7
{[%clk 0:00:26.7]} 36... d4 {[%clk 0:00:24.8]} 37. Rh7+ {[%clk 0:00:24.3]} 37...
Kg8 {[%clk 0:00:25]} 38. Kf6 {[%clk 0:00:24.7]} 38... d3 {[%clk 0:00:25.2]} 39.
Rg7+ {[%clk 0:00:23.6]} 39... Kh8 {[%clk 0:00:23.6]} 40. Rd7 {[%clk 0:00:21.9]}
40... Rc8 {[%clk 0:00:20.7]} 41. Rh7+ {[%clk 0:00:19.5]} 41... Kg8 {[%clk
0:00:20.4]} 42. Rg7+ {[%clk 0:00:20.4]} 42... Kh8 {[%clk 0:00:20.3]} 43. Rh7+
{[%clk 0:00:19.8]} 43... Kg8 {[%clk 0:00:20.5]} 44. Rd7 {[%clk 0:00:20.3]} 44...
Rf8+ {[%clk 0:00:19.7]} 45. Ke7 {[%clk 0:00:18.2]} 45... Bxd7 {[%clk 0:00:18.5]}
46. Kxd7 {[%clk 0:00:18.2]} 46... Rf3 {[%clk 0:00:18.2]} 47. Kxe6 {[%clk
0:00:17.4]} 47... d2 {[%clk 0:00:18.5]} 48. Bc2 {[%clk 0:00:17]} 48... Rc3
{[%clk 0:00:17.8]} 49. Bd1 {[%clk 0:00:15.7]} 49... Rc1 {[%clk 0:00:17.7]} 50.
Bf3 {[%clk 0:00:15.6]} 50... d1=Q {[%clk 0:00:17.1]} 51. Bxd1 {[%clk 0:00:15.7]}
51... Rxd1 {[%clk 0:00:17.4]} 52. Kf6 {[%clk 0:00:13.6]} 52... Rb1 {[%clk
0:00:17.3]} 53. e6 {[%clk 0:00:13.5]} 53... Rxb4 {[%clk 0:00:17.4]} 54. e7
{[%clk 0:00:13.5]} 54... Re4 {[%clk 0:00:17.8]} 55. g7 {[%clk 0:00:12.3]} 55...
Re1 {[%clk 0:00:17.2]} 56. g5 {[%clk 0:00:12.5]} 56... a5 {[%clk 0:00:17.1]} 57.
Kg6 {[%clk 0:00:12.1]} 57... Rxe7 {[%clk 0:00:16.1]} 0-1

[Event "*** SCC Grand Prix: Titled Tuesday Blitz"]
[Site "Chess.com"]
[Date "2020.07.14"]
[Round "10"]
[White "Tekushka"]
[Black "verdest"]
[Result "0-1"]
[WhiteElo "2356"]
[BlackElo "2498"]
[TimeControl "180+1"]
[EndTime "11:59:33 PDT"]
[Termination "verdest won on time"]

1. d4 {[%clk 0:02:53.1]} 1... Nf6 {[%clk 0:02:57.4]} 2. c4 {[%clk 0:02:52.6]}
2... c5 {[%clk 0:02:42.5]} 3. d5 {[%clk 0:02:51.8]} 3... b5 {[%clk 0:02:41.8]}
4. cxb5 {[%clk 0:02:51.9]} 4... a6 {[%clk 0:02:41.2]} 5. bxa6 {[%clk 0:02:52]}
5... g6 {[%clk 0:02:39.5]} 6. Nc3 {[%clk 0:02:51.8]} 6... Bg7 {[%clk 0:02:38.8]}
7. e4 {[%clk 0:02:51.9]} 7... O-O {[%clk 0:02:37.6]} 8. Be2 {[%clk 0:02:51.7]}
8... Qa5 {[%clk 0:02:32.9]} 9. Bd2 {[%clk 0:02:50.7]} 9... d6 {[%clk 0:02:31]}
10. Nf3 {[%clk 0:02:40.3]} 10... Bxa6 {[%clk 0:02:29.3]} 11. O-O {[%clk
0:02:40.1]} 11... Bxe2 {[%clk 0:02:26.9]} 12. Qxe2 {[%clk 0:02:39.8]} 12... Qa6
{[%clk 0:02:27]} 13. Rfe1 {[%clk 0:02:29.5]} 13... Qxe2 {[%clk 0:02:26.6]} 14.
Rxe2 {[%clk 0:02:29.7]} 14... Nbd7 {[%clk 0:02:26.9]} 15. Rb1 {[%clk 0:02:19.1]}
15... Rfb8 {[%clk 0:02:25.3]} 16. b3 {[%clk 0:02:18.7]} 16... Ng4 {[%clk
0:02:11.7]} 17. h3 {[%clk 0:02:14.6]} 17... Nge5 {[%clk 0:02:08.8]} 18. Ne1
{[%clk 0:02:13.5]} 18... c4 {[%clk 0:01:50.1]} 19. f4 {[%clk 0:01:44.5]} 19...
Nd3 {[%clk 0:01:49.4]} 20. Nxd3 {[%clk 0:01:44.6]} 20... cxd3 {[%clk 0:01:48.2]}
21. Ree1 {[%clk 0:01:44.5]} 21... Nc5 {[%clk 0:01:39.3]} 22. b4 {[%clk
0:01:30.3]} 22... Na4 {[%clk 0:01:34.3]} 23. Nxa4 {[%clk 0:01:20.7]} 23... Rxa4
{[%clk 0:01:35.2]} 24. Rb3 {[%clk 0:01:20.5]} 24... Rxa2 {[%clk 0:01:27.7]} 25.
Rxd3 {[%clk 0:01:20.2]} 25... Rxd2 {[%clk 0:01:26.9]} 26. Rxd2 {[%clk
0:01:18.5]} 26... Bc3 {[%clk 0:01:27.5]} 27. Rde2 {[%clk 0:01:11.9]} 27... Bxe1
{[%clk 0:01:26]} 28. Rxe1 {[%clk 0:01:11.4]} 28... Rxb4 {[%clk 0:01:26.2]} 29.
Kf2 {[%clk 0:01:11.5]} 29... Kf8 {[%clk 0:01:20.8]} 30. g4 {[%clk 0:00:56.1]}
30... f5 {[%clk 0:01:19.7]} 31. gxf5 {[%clk 0:00:51.9]} 31... gxf5 {[%clk
0:01:19.1]} 32. Kf3 {[%clk 0:00:43.1]} 32... Rb3+ {[%clk 0:00:57.5]} 33. Re3
{[%clk 0:00:19.8]} 33... fxe4+ {[%clk 0:00:55.2]} 34. Kxe4 {[%clk 0:00:19.9]}
34... Rb4+ {[%clk 0:00:54.8]} 35. Kf5 {[%clk 0:00:18.7]} 35... Rd4 {[%clk
0:00:53.4]} 36. Ke6 {[%clk 0:00:15.1]} 36... Rxf4 {[%clk 0:00:52.2]} 37. Rb3
{[%clk 0:00:13]} 37... Re4+ {[%clk 0:00:43.5]} 38. Kd7 {[%clk 0:00:13.1]} 38...
Re5 {[%clk 0:00:40.8]} 39. Rf3+ {[%clk 0:00:12.3]} 39... Kg7 {[%clk 0:00:40.3]}
40. Ke8 {[%clk 0:00:12.3]} 40... Kg6 {[%clk 0:00:32.9]} 41. Rf7 {[%clk
0:00:10.1]} 41... Rxd5 {[%clk 0:00:31.1]} 42. Kxe7 {[%clk 0:00:04.6]} 42... Rd3
{[%clk 0:00:21.8]} 43. Rf8 {[%clk 0:00:04.5]} 43... d5 {[%clk 0:00:18.3]} 44.
Ke6 {[%clk 0:00:04.8]} 44... d4 {[%clk 0:00:17.6]} 45. Rg8+ {[%clk 0:00:04.9]}
45... Kh6 {[%clk 0:00:16.1]} 46. Ke5 {[%clk 0:00:04.8]} 46... Rd1 {[%clk
0:00:14.1]} 47. Ke4 {[%clk 0:00:04.5]} 47... d3 {[%clk 0:00:13]} 48. Ke3 {[%clk
0:00:04.9]} 48... Kh5 {[%clk 0:00:12]} 49. Rg7 {[%clk 0:00:04.4]} 49... h6
{[%clk 0:00:11.7]} 50. Rg8 {[%clk 0:00:02.1]} 50... Kh4 {[%clk 0:00:11.3]} 51.
Rh8 {[%clk 0:00:01.6]} 51... h5 {[%clk 0:00:11.6]} 52. Rh7 {[%clk 0:00:01.8]}
52... Rh1 {[%clk 0:00:10.7]} 53. Kxd3 {[%clk 0:00:01.5]} 53... Rxh3+ {[%clk
0:00:10.7]} 54. Ke2 {[%clk 0:00:01.7]} 54... Rg3 {[%clk 0:00:10.4]} 55. Kf2
{[%clk 0:00:01.6]} 55... Rg5 {[%clk 0:00:09.1]} 0-1

[Event "*** SCC Grand Prix: Titled Tuesday Blitz"]
[Site "Chess.com"]
[Date "2020.07.14"]
[Round "10"]
[White "Morshynska"]
[Black "QueenOfTactics90"]
[Result "1-0"]
[WhiteElo "2178"]
[BlackElo "2005"]
[TimeControl "180+1"]
[EndTime "11:59:34 PDT"]
[Termination "Morshynska won by resignation"]

1. e4 {[%clk 0:03:00.9]} 1... c5 {[%clk 0:03:00.1]} 2. Nf3 {[%clk 0:02:57.3]}
2... Nc6 {[%clk 0:03:00.5]} 3. d4 {[%clk 0:02:56.6]} 3... cxd4 {[%clk 0:03:00]}
4. Nxd4 {[%clk 0:02:57.5]} 4... g6 {[%clk 0:03:00.3]} 5. c4 {[%clk 0:02:57.1]}
5... Bg7 {[%clk 0:03:00.3]} 6. Be3 {[%clk 0:02:56.8]} 6... Nf6 {[%clk
0:03:00.4]} 7. Nc3 {[%clk 0:02:56]} 7... O-O {[%clk 0:03:00.4]} 8. Be2 {[%clk
0:02:54.5]} 8... d6 {[%clk 0:03:00.7]} 9. O-O {[%clk 0:02:54]} 9... Bd7 {[%clk
0:03:00.7]} 10. Rc1 {[%clk 0:02:52.8]} 10... Nxd4 {[%clk 0:03:00.8]} 11. Bxd4
{[%clk 0:02:53.7]} 11... Bc6 {[%clk 0:03:00.9]} 12. f3 {[%clk 0:02:53.4]} 12...
Nd7 {[%clk 0:03:00.8]} 13. Be3 {[%clk 0:02:53.2]} 13... a5 {[%clk 0:02:56.9]}
14. b3 {[%clk 0:02:50.8]} 14... Nc5 {[%clk 0:02:56.4]} 15. Qd2 {[%clk
0:02:38.8]} 15... Qc7 {[%clk 0:02:50.2]} 16. Rfd1 {[%clk 0:02:28]} 16... Rfd8
{[%clk 0:02:40.9]} 17. Nd5 {[%clk 0:02:18.3]} 17... Bxd5 {[%clk 0:02:40.4]} 18.
cxd5 {[%clk 0:02:16.9]} 18... b6 {[%clk 0:02:37.5]} 19. Bb5 {[%clk 0:02:12.9]}
19... Rac8 {[%clk 0:02:29.7]} 20. Qe2 {[%clk 0:02:03.2]} 20... Qb8 {[%clk
0:02:22.5]} 21. g4 {[%clk 0:02:01.2]} 21... h6 {[%clk 0:02:13.6]} 22. h4 {[%clk
0:01:57.7]} 22... Rc7 {[%clk 0:02:04.2]} 23. h5 {[%clk 0:01:45.7]} 23... g5
{[%clk 0:02:03.4]} 24. Rc2 {[%clk 0:01:34.2]} 24... Qc8 {[%clk 0:01:59.8]} 25.
Rdc1 {[%clk 0:01:30.2]} 25... e6 {[%clk 0:01:55.4]} 26. dxe6 {[%clk 0:01:07.9]}
26... Qxe6 {[%clk 0:01:45.6]} 27. Bc4 {[%clk 0:01:07.5]} 27... Qe7 {[%clk
0:01:44.9]} 28. Bd5 {[%clk 0:01:06.8]} 28... Kh7 {[%clk 0:01:41]} 29. a3 {[%clk
0:01:04.9]} 29... Rdc8 {[%clk 0:01:36]} 30. Qb5 {[%clk 0:00:54.3]} 30... Nb7
{[%clk 0:01:01.1]} 31. Rc6 {[%clk 0:00:36.3]} 31... Rxc6 {[%clk 0:00:58.4]} 32.
Rxc6 {[%clk 0:00:37.2]} 32... Rxc6 {[%clk 0:00:51.2]} 33. Qxc6 {[%clk
0:00:38.1]} 33... Nd8 {[%clk 0:00:49.9]} 34. Qxb6 {[%clk 0:00:36.8]} 34... Qf6
{[%clk 0:00:47.3]} 35. Kg2 {[%clk 0:00:32.4]} 35... Qb2+ {[%clk 0:00:46.5]} 36.
Bf2 {[%clk 0:00:29.1]} 36... Ne6 {[%clk 0:00:39.7]} 37. Bxe6 {[%clk 0:00:28.8]}
37... fxe6 {[%clk 0:00:39.7]} 38. Qxd6 {[%clk 0:00:21.3]} 38... Qxb3 {[%clk
0:00:39.5]} 39. Qe7 {[%clk 0:00:15.5]} 39... Kg8 {[%clk 0:00:38.4]} 40. Qe8+
{[%clk 0:00:12.4]} 40... Bf8 {[%clk 0:00:38.6]} 41. Qg6+ {[%clk 0:00:10.5]}
41... Bg7 {[%clk 0:00:37.4]} 42. Bd4 {[%clk 0:00:05.5]} 42... Qc2+ {[%clk
0:00:29.9]} 43. Kh3 {[%clk 0:00:04.8]} 43... Qc7 {[%clk 0:00:28.7]} 44. Qxg7+
{[%clk 0:00:04.3]} 44... Qxg7 {[%clk 0:00:27.7]} 45. Bxg7 {[%clk 0:00:05.2]}
45... Kxg7 {[%clk 0:00:28.6]} 46. Kg3 {[%clk 0:00:05.5]} 46... Kf6 {[%clk
0:00:28.7]} 47. f4 {[%clk 0:00:05.5]} 47... gxf4+ {[%clk 0:00:27.4]} 48. Kxf4
{[%clk 0:00:06.4]} 48... e5+ {[%clk 0:00:27.7]} 49. Kg3 {[%clk 0:00:03]} 49...
Kg5 {[%clk 0:00:28]} 50. a4 {[%clk 0:00:02.4]} 50... Kf6 {[%clk 0:00:26.8]} 51.
Kh4 {[%clk 0:00:02.8]} 51... Kg7 {[%clk 0:00:26.6]} 52. g5 {[%clk 0:00:03.7]}
52... hxg5+ {[%clk 0:00:26.6]} 53. Kxg5 {[%clk 0:00:04.6]} 53... Kh7 {[%clk
0:00:27]} 54. Kf5 {[%clk 0:00:04.6]} 54... Kh6 {[%clk 0:00:27.5]} 55. Kxe5
{[%clk 0:00:05.5]} 55... Kxh5 {[%clk 0:00:28.4]} 56. Kd6 {[%clk 0:00:06.1]}
56... Kg5 {[%clk 0:00:27.8]} 57. e5 {[%clk 0:00:07]} 57... Kf4 {[%clk
0:00:28.2]} 58. e6 {[%clk 0:00:07.6]} 58... Ke3 {[%clk 0:00:29.1]} 59. e7 {[%clk
0:00:08.1]} 59... Kd3 {[%clk 0:00:30]} 60. e8=Q {[%clk 0:00:08.5]} 60... Kc3
{[%clk 0:00:30.9]} 61. Qb5 {[%clk 0:00:08.9]} 1-0